bitfinex/quotes_ETHUSD_20251011
["timestamp","ask_amount","ask_price","bid_price","bid_amount"]
[1760214150617,0.4069,3736.4,3733.0,0.938246]
[1760214150618,20.00573281,3734.0,3733.0,0.938246]
[1760214150843,2.68012503,3731.2,3730.4,1.0]
[1760214151127,20.00573281,3730.2,3729.7,0.0279]
[1760214151269,1.32978463,3731.1,3728.0,0.03882]
[1760214151270,2.5536,3730.1,3728.0,0.03882]
[1760214151597,20.54042818,3730.1,3728.0,0.03882]
[1760214151805,0.3709,3730.0,3728.0,0.50042]
[1760214151963,0.3709,3730.0,3728.1,0.02682331]
[1760214152170,0.3709,3730.0,3728.3,2.68218759]
[1760214152370,0.3709,3731.6,3728.7,19.90682818]
[1760214152570,0.3709,3731.5,3730.0,0.002]
[1760214152789,0.3709,3731.5,3730.0,2.68290909]
[1760214153104,0.3709,3732.3,3730.1,0.4616]
[1760214153305,0.6336,3732.2,3731.0,2.68021291]
[1760214153474,0.6336,3732.2,3730.0,0.002]
[1760214153475,0.1336,3730.6,3730.0,0.1356]
[1760214153800,0.6336,3732.4,3730.5,0.1336]
[1760214154005,0.3709,3732.5,3731.5,2.67988744]
[1760214154006,0.1336,3731.6,3731.5,2.67988744]
[1760214154192,0.1399,3733.0,3732.1,2.67942062]
[1760214154375,0.1399,3733.0,3731.1,0.4616]
[1760214154376,0.1336,3731.9,3731.2,0.1336]
[1760214154588,0.1336,3731.9,3731.7,2.6796945]
[1760214154792,0.1399,3733.0,3731.3,0.25152]
[1760214155022,0.1399,3733.0,3732.8,2.67891772]
[1760214155317,0.1399,3733.0,3732.9,2.67888237]
[1760214155478,0.6837,3734.7,3732.7,2.67901033]
[1760214155818,0.6837,3734.7,3733.2,1.92]
[1760214155819,0.4585,3734.7,3733.2,1.92]
[1760214156113,0.4585,3734.7,3732.9,0.4616]
[1760214156322,0.4572,3735.4,3733.0,0.6336]
[1760214156621,0.2265,3738.1,3732.9,0.4616]
[1760214156622,0.4572,3736.3,3733.3,1.92]
[1760214156925,4.350906,3736.1,3733.4,2.67851273]
[1760214157152,0.00739801,3736.4,3733.4,2.67851273]
[1760214157153,0.4572,3736.0,3733.4,0.26785127]
[1760214157315,0.4572,3736.0,3734.3,2.67786712]
[1760214157316,2.67682758,3735.8,3734.3,2.67786712]
[1760214157516,2.67702898,3735.5,3733.4,0.26785127]
[1760214157700,1.3952,3735.4,3733.4,2.18785127]
[1760214157906,1.3952,3735.4,3733.4,0.72945127]
[1760214158107,1.3952,3735.4,3733.5,2.21172964]
[1760214158350,1.3952,3735.4,3734.5,2.67769237]
[1760214158537,1.3952,3735.4,3733.5,0.26494513]
[1760214158711,1.3952,3735.4,3733.6,2.67838011]
[1760214158906,1.3952,3735.4,3734.6,2.67764081]
[1760214159218,0.4572,3735.3,3732.9,0.4616]
[1760214159417,0.4572,3735.3,3732.3,0.4616]
[1760214159418,2.67757824,3734.8,3732.3,0.4616]
[1760214159656,0.6336,3735.2,3732.3,0.4616]
[1760214159657,0.6336,3734.6,3733.0,2.67877809]
[1760214159951,0.4572,3735.2,3732.4,0.32877361]
[1760214160116,0.4572,3735.2,3732.5,1.0952]
[1760214160319,0.4572,3735.2,3732.8,2.5536]
[1760214160520,0.938,3735.4,3734.3,2.67782997]
[1760214160702,0.4572,3735.3,3732.9,3.14047526]
[1760214161044,0.4572,3735.3,3733.5,1.92]
[1760214161208,0.4572,3735.3,3733.0,0.31404753]
[1760214161535,0.4572,3735.3,3734.4,2.67775227]
[1760214161746,0.6336,3735.2,3732.4,0.32877361]
[1760214162035,3.76809184,3735.2,3732.8,4.59895413]
[1760214162256,0.6336,3735.0,3733.0,2.67874126]
[1760214162444,0.6336,3734.8,3731.7,0.4472]
[1760214162650,0.6336,3734.6,3731.7,0.4472]
[1760214162848,0.938,3735.4,3731.2,2.68005678]
[1760214162849,2.5536,3734.2,3731.2,2.68005678]
[1760214163031,0.6336,3734.0,3732.5,2.67912195]
[1760214163238,0.6336,3733.8,3732.5,2.67912195]
[1760214163542,0.553,3733.9,3732.7,2.67901361]
[1760214163714,1.92,3735.2,3731.6,2.67981562]
[1760214163715,2.67659265,3736.1,3733.6,2.67831144]
[1760214163920,0.6336,3734.6,3732.1,0.4472]
[1760214164116,0.6336,3734.6,3732.4,1.92]
[1760214164316,0.6336,3734.2,3732.1,0.4472]
[1760214164516,0.6336,3734.0,3730.8,2.82714638]
[1760214164716,2.67742819,3735.0,3730.8,2.82714638]
[1760214164717,0.6336,3733.5,3730.9,0.4472]
[1760214164931,2.67868052,3733.2,3731.9,2.67955407]
[1760214165220,0.1336,3732.0,3731.4,0.1336]
[1760214165422,0.1336,3732.4,3732.3,2.67931302]
[1760214165744,0.938,3732.6,3732.5,2.67916945]
[1760214166555,0.938,3732.6,3732.5,3.6755777]
[1760214166764,0.1336,3733.6,3732.6,1.92]
[1760214167067,0.1336,3733.6,3732.5,3.05000825]
[1760214167068,0.1336,3733.6,3733.5,2.67845185]
[1760214167474,0.4433,3735.1,3734.0,2.6780482]
[1760214167622,0.4433,3735.1,3734.0,2.67809319]
[1760214167623,0.1336,3734.1,3734.0,2.67809319]
[1760214167826,0.4433,3735.7,3734.9,2.67744356]
[1760214168153,0.4433,3735.7,3734.2,2.67794976]
[1760214168321,0.4416,3736.2,3734.4,0.1336]
[1760214168520,0.1336,3735.1,3734.4,0.1336]
[1760214168751,0.4416,3736.2,3735.1,2.67726156]
[1760214168952,0.1336,3734.9,3734.8,2.67747711]
[1760214169155,2.67659836,3736.1,3735.0,2.67732177]
[1760214169356,2.67659836,3736.1,3733.7,1.92]
[1760214169357,2.67673117,3735.9,3733.9,2.67814333]
[1760214169664,2.67563316,3737.5,3733.1,0.4472]
[1760214169665,0.2282,3735.1,3733.1,0.4472]
[1760214169971,0.4416,3735.0,3733.9,2.67813892]
[1760214170259,0.4416,3735.0,3733.1,0.4472]
[1760214170444,0.4416,3735.0,3734.1,2.67801317]
[1760214170966,0.4416,3735.0,3733.3,1.92]
[1760214171137,0.001,3733.8,3733.7,4.59830838]
[1760214171342,0.001,3733.8,3733.7,5.04550838]
[1760214171554,0.4572,3737.1,3733.7,2.3672]
[1760214171724,15.88830931,3740.6,3733.4,0.50458671]
[1760214171930,2.717764,3736.5,3733.0,0.4472]
[1760214172124,1.92,3735.9,3733.0,0.4472]
[1760214172368,0.6731,3735.9,3733.0,0.4472]
[1760214172668,0.6731,3735.9,3734.9,2.67739988]
[1760214172826,3.34990008,3735.9,3734.9,2.67739988]
[1760214173032,0.451,3736.5,3735.0,0.02677376]
[1760214173245,0.451,3736.5,3734.2,0.22]
[1760214173430,2.67651064,3736.3,3734.3,1.92]
[1760214173758,0.2287,3737.2,3736.3,2.67641278]
[1760214174064,0.2287,3737.2,3734.5,3.31133463]
[1760214174065,2.67596341,3737.0,3735.9,2.67671644]
[1760214174358,0.4731,3737.7,3735.8,2.67680282]
[1760214174575,0.4731,3737.7,3735.7,0.4736]
[1760214174576,0.4731,3737.7,3735.9,1.92]
[1760214174724,0.4704,3737.6,3734.6,0.33113346]
[1760214174928,0.6336,3737.5,3734.4,0.4736]
[1760214175227,3.30942522,3737.2,3735.8,2.67677153]
[1760214175568,0.6336,3737.0,3734.4,0.4736]
[1760214175877,0.4704,3736.9,3734.4,0.4736]
[1760214176037,2.67616795,3736.7,3735.5,2.67697061]
[1760214176241,2.67669152,3736.0,3735.1,2.67730251]
[1760214176437,0.4704,3735.9,3734.9,2.6773867]
[1760214176652,3.36933395,3735.9,3734.6,2.67765639]
[1760214176852,0.6926,3735.9,3734.8,2.67751921]
[1760214177036,2.6771002,3735.4,3733.8,0.4736]
[1760214177256,0.4679,3735.3,3734.2,2.67790783]
[1760214177482,0.4679,3735.3,3734.3,2.67780929]
[1760214177683,0.4679,3735.3,3734.5,2.67768794]
[1760214177857,0.6336,3735.8,3733.2,0.4736]
[1760214178062,2.67730448,3735.1,3733.4,2.67852359]
[1760214178380,2.67730448,3735.1,3734.1,2.67798198]
[1760214178569,0.4679,3735.2,3734.2,2.67788948]
[1760214178884,1.92,3735.7,3730.0,0.52949844]
[1760214178885,0.6336,3735.0,3730.0,0.52949844]
[1760214179092,0.00785663,3734.8,3732.5,2.67914317]
[1760214179292,0.1336,3733.3,3733.2,2.67866709]
[1760214179794,0.1336,3733.4,3733.2,2.67866709]
[1760214179951,0.1336,3733.7,3733.6,2.67832844]
[1760214180476,0.6015,3733.7,3731.8,0.4736]
[1760214180657,0.1336,3733.4,3732.2,0.1336]
[1760214180859,0.4644,3733.3,3732.0,2.67952534]
[1760214181082,0.6336,3733.1,3732.0,2.67952268]
[1760214181297,0.6336,3732.9,3731.3,0.002]
[1760214181464,0.00857402,3732.3,3731.3,0.002]
[1760214181797,0.6934,3732.2,3731.3,0.002]
[1760214182374,2.67956598,3732.0,3731.3,0.002]
[1760214182712,2.6794566,3732.1,3731.3,0.002]
[1760214182910,0.4705,3731.9,3731.3,0.002]
[1760214183269,0.4705,3731.8,3731.3,0.002]
[1760214183688,0.4705,3732.6,3731.6,2.68179067]
[1760214183888,3.14966369,3732.6,3731.6,0.002]
[1760214184089,0.4681,3732.5,3731.6,0.002]
[1760214184277,0.2252,3733.4,3731.6,0.002]
[1760214184480,0.4656,3732.5,3731.7,2.67974381]
[1760214184690,0.6908,3733.4,3731.9,2.6796002]
[1760214184891,0.6908,3733.4,3731.8,0.27085338]
[1760214185099,0.3444,3734.1,3732.1,1.92]
[1760214185297,0.3444,3734.1,3732.3,1.92]
[1760214185500,0.3444,3734.1,3731.9,0.4736]
[1760214185706,0.3444,3734.8,3732.7,2.6790259]
[1760214186011,0.3444,3734.8,3732.5,2.67916945]
[1760214186012,0.3444,3734.8,3732.9,2.67888237]
[1760214186308,0.3444,3734.8,3733.0,1.9467881]
[1760214186611,0.3444,3734.8,3732.8,1.20141954]
[1760214186612,0.3444,3734.8,3733.2,1.92]
[1760214186830,0.3444,3734.8,3732.8,1.20141954]
[1760214186831,0.3444,3734.7,3732.8,0.72781954]
[1760214186989,0.2335,3735.1,3731.8,0.27085338]
[1760214186990,0.3444,3734.6,3732.4,1.92]
[1760214187303,0.64168609,3734.2,3732.5,2.67911033]
[1760214187504,0.6336,3734.0,3732.5,2.67915522]
[1760214187674,0.5721,3733.9,3732.4,2.67920334]
[1760214188001,0.5721,3733.9,3732.9,2.67882828]
[1760214188207,0.5721,3733.9,3731.8,0.27085338]
[1760214188208,0.5721,3733.9,3732.8,2.67890838]
[1760214188502,0.5721,3733.9,3732.6,0.002]
[1760214188702,0.001,3735.1,3732.8,0.6336]
[1760214189005,0.001,3735.1,3735.0,2.67737617]
[1760214189587,0.001,3735.1,3735.0,3.17774993]
[1760214189772,0.001,3735.1,3735.0,2.67737617]
[1760214190177,0.001,3735.1,3735.0,2.70414993]
[1760214190415,0.001,3735.1,3735.0,5.16231269]
[1760214190619,0.001,3735.1,3735.0,3.21553893]
[1760214190823,0.001,3735.1,3735.0,2.67737617]
[1760214190986,0.001,3735.1,3734.4,2.67779789]
[1760214190987,0.001,3735.1,3733.6,1.92]
[1760214191187,0.001,3735.1,3734.7,2.67756769]
[1760214191502,0.001,3735.1,3734.5,2.67769831]
[1760214191674,0.001,3735.1,3734.8,2.67751855]
[1760214191871,0.001,3735.1,3735.0,2.67737617]
[1760214192112,0.001,3735.1,3735.0,4.59737617]
[1760214192310,0.001,3735.5,3735.4,2.67708946]
[1760214192525,0.001,3735.5,3735.4,2.70386035]
[1760214192723,0.001,3735.5,3735.4,3.15068946]
[1760214193016,0.001,3735.5,3735.4,6.56920854]
[1760214193222,0.303,3737.7,3735.6,1.92]
[1760214193376,0.303,3737.6,3734.8,1.00912126]
[1760214193576,0.303,3737.5,3734.9,0.66037447]
[1760214193797,0.303,3737.5,3735.5,2.67694674]
[1760214194002,0.2335,3737.9,3735.3,0.6336]
[1760214194217,3.14799098,3738.5,3735.9,1.92]
[1760214194383,2.67494304,3738.4,3736.1,1.92]
[1760214194586,0.4731,3738.5,3736.5,1.92]
[1760214194783,0.4731,3738.5,3737.4,2.67564469]
[1760214195109,0.4731,3738.5,3736.6,0.4736]
[1760214195477,0.469,3739.6,3736.7,0.6336]
[1760214195672,0.469,3740.2,3737.1,0.6336]
[1760214195967,0.469,3740.2,3737.3,0.6336]
[1760214196221,0.469,3740.2,3738.6,1.92]
[1760214196575,0.2335,3740.7,3739.6,2.67403607]
[1760214196782,0.00625316,3740.4,3737.9,0.4736]
[1760214196977,0.469,3740.3,3737.2,0.4736]
[1760214197181,2.67409328,3739.6,3737.2,0.4736]
[1760214197487,0.469,3740.3,3738.6,2.67472762]
[1760214197687,2.67399334,3739.8,3737.9,1.92]
[1760214197873,2.67399334,3739.8,3737.7,0.4736]
[1760214197874,2.6738688,3739.9,3738.7,2.67465956]
[1760214198077,0.00619598,3740.6,3738.0,4.59522739]
[1760214198078,0.7025,3739.8,3738.0,1.92]
[1760214198284,0.7025,3739.8,3738.0,2.42688965]
[1760214198491,0.469,3740.6,3739.2,2.674315]
[1760214198674,0.469,3740.6,3738.7,0.4736]
[1760214198909,0.7025,3741.4,3738.7,3.14831265]
[1760214199117,0.001,3743.3,3737.3,0.6336]
[1760214199118,0.14078077,3743.3,3739.3,1.92]
[1760214199419,0.2318,3742.6,3740.9,2.67312192]
[1760214199582,3.14267263,3742.5,3740.1,4.59371218]
[1760214199779,2.67287235,3741.3,3738.8,2.98943743]
[1760214200081,0.4706,3741.8,3738.9,0.4736]
[1760214200280,0.00588161,3741.7,3739.3,1.92]
[1760214200585,0.00588161,3741.7,3738.9,0.4736]
[1760214200586,0.63953875,3741.5,3738.9,0.4736]
[1760214200786,0.63953875,3741.5,3739.6,2.67402214]
[1760214200787,0.6336,3741.3,3739.6,2.67402214]
[1760214200986,0.1336,3740.0,3739.4,0.1336]
[1760214201179,0.1336,3739.4,3738.8,0.1336]
[1760214201392,0.1336,3738.9,3738.4,2.67489933]
[1760214201594,0.1336,3738.9,3737.5,3.14912228]
[1760214201595,0.4706,3739.3,3737.5,0.4736]
[1760214201820,0.1336,3738.6,3738.0,0.1336]
[1760214202128,0.1336,3738.2,3737.6,0.1336]
[1760214202418,0.1336,3737.9,3737.6,2.67549934]
[1760214202779,0.1336,3737.9,3737.3,0.1336]
[1760214202980,0.6336,3739.8,3737.4,0.4383]
[1760214203212,0.00653914,3739.4,3736.4,0.4383]
[1760214203414,2.67479021,3738.7,3736.4,0.4383]
[1760214203612,2.67480176,3738.6,3737.6,2.67550353]
[1760214203792,0.447,3738.7,3737.7,2.67537302]
[1760214203979,0.447,3738.7,3737.0,3.1142373]
[1760214203980,2.67482574,3738.6,3737.0,0.4383]
[1760214204176,0.6336,3739.3,3736.2,0.4383]
[1760214204381,3.12140152,3739.2,3736.9,1.92]
[1760214204582,0.447,3739.2,3738.1,2.67512252]
[1760214204802,0.447,3739.8,3737.7,0.4383]
[1760214205002,2.67434743,3739.3,3738.3,2.67498536]
[1760214205313,0.447,3739.8,3737.7,2.3583]
[1760214205517,0.447,3739.8,3737.8,0.4545837]
[1760214205715,0.447,3740.4,3737.9,0.4383]
[1760214205890,0.447,3740.4,3739.8,2.67387433]
[1760214206211,0.447,3740.4,3739.9,2.67386276]
[1760214206577,0.447,3740.3,3738.9,1.92]
[1760214206813,2.67406385,3739.7,3737.8,0.4383]
[1760214206990,2.67445504,3739.1,3738.1,2.67508549]
[1760214207194,0.6336,3739.5,3737.3,2.67572846]
[1760214207408,0.447,3739.1,3737.2,0.6125]
[1760214207610,3.12144137,3739.1,3738.1,2.67509244]
[1760214207816,2.67463414,3738.9,3737.4,1.92]
[1760214208096,0.447,3739.1,3737.4,0.25325]
[1760214208313,3.1214662,3739.1,3738.0,2.67522344]
[1760214208810,2.67463531,3738.9,3738.0,2.67522344]
[1760214208996,2.67463531,3738.9,3738.1,2.67515161]
[1760214209594,0.447,3739.1,3738.4,2.67492691]
[1760214209851,2.6745119,3739.0,3737.2,2.3583]
[1760214210008,2.67474653,3738.7,3737.2,0.5034144]
[1760214210329,2.67480366,3738.6,3737.7,2.67543845]
[1760214210898,1.0806,3738.9,3737.9,2.67524965]
[1760214211329,1.0806,3738.9,3737.6,1.92]
[1760214211330,2.67474496,3738.7,3737.6,1.92]
[1760214211645,0.447,3739.7,3738.5,2.67482155]
[1760214211927,0.447,3739.7,3736.4,1.92]
[1760214211928,0.447,3740.4,3739.4,2.67416461]
[1760214212230,2.67371365,3740.2,3739.3,2.67428017]
[1760214212730,0.447,3740.4,3740.0,2.67379447]
[1760214212933,0.447,3740.4,3739.7,2.67398604]
[1760214213306,2.67391599,3739.9,3738.0,0.4383]
[1760214213540,2.67391599,3739.9,3736.7,2.67612206]
[1760214213541,0.6336,3739.5,3738.4,2.67492607]
[1760214213730,0.6336,3739.5,3737.4,0.4383]
[1760214213731,0.447,3739.4,3737.4,0.4383]
[1760214214026,3.30796884,3739.2,3737.1,0.1742]
[1760214214226,2.67460999,3738.9,3737.9,2.67523258]
[1760214214427,2.67460999,3738.9,3738.0,2.67520834]
[1760214214626,0.447,3739.1,3738.1,0.02675155]
[1760214214829,0.447,3739.1,3738.3,2.67494417]
[1760214215038,3.12144672,3739.1,3738.3,2.67494417]
[1760214215405,0.447,3739.1,3737.7,2.67543032]
[1760214215606,0.6336,3739.3,3737.7,0.53510054]
[1760214215819,0.6693,3739.9,3739.4,2.67421979]
[1760214216000,2.67165911,3743.0,3738.3,0.4383]
[1760214216001,0.447,3740.7,3738.3,0.4383]
[1760214216205,0.447,3740.7,3739.7,2.67398593]
[1760214216402,0.447,3740.7,3738.5,1.92]
[1760214216642,0.447,3740.7,3739.9,2.67385211]
[1760214216847,0.447,3740.7,3740.0,2.67379591]
[1760214217034,0.447,3740.7,3739.9,2.67385475]
[1760214217201,0.447,3740.7,3740.0,2.67379041]
[1760214217553,0.447,3740.6,3739.0,2.67449743]
[1760214217717,2.67386284,3740.0,3739.1,2.67442061]
[1760214217921,0.447,3739.9,3738.1,0.4383]
[1760214218308,0.447,3739.9,3739.1,2.6744002]
[1760214218623,2.67251055,3741.8,3739.7,2.67398695]
[1760214218812,0.447,3740.8,3739.1,2.67437157]
[1760214219015,2.67343693,3740.6,3739.7,2.67398554]
[1760214219213,0.447,3740.5,3739.4,2.67418529]
[1760214219419,0.6336,3740.4,3738.6,1.92]
[1760214219633,0.6336,3740.4,3739.6,2.67403073]
[1760214219812,0.6336,3740.4,3738.6,1.92]
[1760214219813,0.6336,3740.2,3737.8,1.92]
[1760214220018,0.6336,3740.2,3739.3,2.67428426]
[1760214220019,2.67374358,3740.1,3739.3,2.67428426]
[1760214220517,3.30726854,3740.2,3739.5,2.67415322]
[1760214220712,0.447,3740.3,3738.2,1.92]
[1760214220934,2.67371117,3740.2,3738.4,0.93574392]
[1760214221104,0.447,3740.3,3738.4,0.93574392]
[1760214221105,0.447,3740.3,3738.6,1.92]
[1760214221299,0.447,3740.3,3738.7,0.4324]
[1760214221300,0.4616,3740.3,3738.7,0.4324]
[1760214221535,0.4616,3740.3,3738.1,1.92]
[1760214221717,0.6336,3740.1,3739.3,2.67423046]
[1760214221914,0.4616,3740.3,3739.4,0.02674225]
[1760214222234,0.4616,3740.3,3738.8,1.92]
[1760214222443,0.4616,3740.3,3739.8,2.67393165]
[1760214222639,0.4616,3740.2,3738.9,0.23524]
[1760214222837,0.6336,3740.7,3740.0,2.67377336]
[1760214223041,0.6336,3740.7,3739.9,2.6738585]
[1760214223239,0.6336,3740.7,3739.6,2.67402687]
[1760214223240,0.6336,3740.5,3739.6,2.67402687]
[1760214223543,0.6336,3740.5,3739.8,2.67388004]
[1760214223742,0.6336,3740.3,3738.0,0.4324]
[1760214223945,2.67394638,3739.8,3739.0,2.67451001]
[1760214224148,0.6336,3739.6,3738.1,0.31077705]
[1760214224357,2.67457586,3739.0,3737.9,2.67523979]
[1760214224513,2.67437083,3739.2,3738.1,2.67510248]
[1760214224514,3.1362039,3738.9,3738.1,2.67510248]
[1760214224715,3.1362039,3738.9,3737.1,0.89161957]
[1760214224716,0.6336,3738.8,3737.1,0.89161957]
[1760214224918,0.6336,3738.6,3736.4,0.4324]
[1760214225210,0.6336,3738.6,3735.6,2.67688352]
[1760214225211,2.67552572,3737.6,3736.5,2.67628158]
[1760214225437,2.67552572,3737.6,3735.8,3.10919349]
[1760214225438,2.67565687,3737.4,3735.8,3.10919349]
[1760214225636,2.67565687,3737.4,3736.3,2.67643239]
[1760214225942,2.67584122,3737.2,3736.3,2.67637753]
[1760214226108,0.6336,3737.2,3735.1,0.4344]
[1760214226314,0.3348,3737.1,3735.1,0.4344]
[1760214226514,2.67608345,3736.9,3735.1,0.4344]
[1760214226813,3.30954621,3737.0,3735.9,2.67666974]
[1760214227018,3.01081487,3736.9,3736.0,2.67662476]
[1760214227219,3.01081487,3736.9,3735.7,2.6768675]
[1760214227514,3.01081487,3736.9,3735.1,0.4344]
[1760214227515,0.6336,3736.8,3735.1,0.002]
[1760214227720,2.676295,3736.6,3735.5,2.67900246]
[1760214227917,2.67631916,3736.5,3735.7,2.67686253]
[1760214228119,2.67637909,3736.4,3735.5,0.002]
[1760214228363,2.67659531,3736.1,3735.5,0.002]
[1760214228525,0.6336,3736.3,3735.5,0.002]
[1760214228854,2.67567548,3737.4,3735.5,0.002]
[1760214228855,0.3348,3736.0,3735.5,0.002]
[1760214229268,3.31054613,3735.6,3735.5,0.002]
[1760214229415,0.3481,3735.9,3735.5,0.002]
[1760214229618,0.3481,3735.6,3735.5,0.002]
[1760214229838,3.02504613,3735.6,3735.5,0.002]
[1760214230154,3.65864613,3735.6,3735.5,0.002]
[1760214231924,5.57864613,3735.6,3735.5,0.002]
[1760214232257,11.03991313,3735.6,3735.5,0.002]
[1760214232475,11.04776976,3735.6,3735.5,0.002]
[1760214232769,5.57864613,3735.6,3735.5,0.002]
[1760214232971,2.67723281,3735.2,3735.1,1e-08]
[1760214233145,5.23083281,3735.2,3735.1,1e-08]
[1760214233349,5.57893281,3735.2,3735.1,1e-08]
[1760214233668,5.58676077,3735.2,3735.1,1e-08]
[1760214234237,9.43499177,3735.2,3735.1,1e-08]
[1760214234457,7.89011277,3735.2,3735.1,1e-08]
[1760214235168,2.67881335,3733.0,3732.6,0.002]
[1760214235475,0.6336,3733.0,3732.6,0.002]
[1760214235767,3.3126259,3732.7,3732.6,0.002]
[1760214236155,3.6658259,3732.7,3732.6,0.002]
[1760214236344,3.67431379,3732.7,3732.6,0.002]
[1760214236545,0.9868,3732.7,3732.6,0.002]
[1760214236745,0.2284,3733.2,3732.6,0.002]
[1760214236937,0.6336,3733.1,3732.6,0.002]
[1760214237472,0.3532,3733.0,3732.6,0.002]
[1760214238065,0.3532,3733.0,3732.7,2.6790259]
[1760214238267,0.3532,3733.5,3732.8,2.67889668]
[1760214238581,0.6336,3733.2,3732.6,0.002]
[1760214238869,0.6336,3733.1,3732.6,0.002]
[1760214239073,2.67888892,3732.9,3732.6,0.002]
[1760214239375,3.3126259,3732.7,3732.6,0.002]
[1760214239782,3.6658259,3732.7,3732.6,0.002]
[1760214242063,0.3532,3733.4,3732.6,0.002]
[1760214242654,0.3532,3733.4,3732.8,2.67892407]
[1760214242856,0.5837,3734.6,3732.8,0.53600857]
[1760214243045,0.5837,3734.6,3732.6,0.02879097]
[1760214243046,0.4409,3734.6,3734.0,2.67809295]
[1760214243376,0.1428,3735.1,3733.7,2.67830219]
[1760214243580,0.1428,3735.1,3734.2,2.67794084]
[1760214243775,0.1428,3735.1,3734.5,2.67773363]
[1760214243977,0.438,3735.4,3734.3,0.02677878]
[1760214244160,0.438,3735.4,3734.4,2.67780634]
[1760214244478,0.438,3735.4,3732.9,2.67886665]
[1760214244479,0.00782796,3735.1,3732.4,0.6797]
[1760214244774,0.6336,3734.3,3733.6,2.67837383]
[1760214244992,2.67765311,3734.7,3732.4,0.6797]
[1760214244993,0.6336,3734.1,3732.4,0.6797]
[1760214245193,0.6336,3734.1,3731.6,0.4609]
[1760214245362,0.6336,3733.6,3732.5,2.67909797]
[1760214245557,0.6336,3733.4,3732.6,2.68108671]
[1760214246097,3.3117028,3734.0,3732.7,2.6790259]
[1760214246261,0.1336,3732.8,3732.7,2.6790259]
[1760214247080,0.1336,3732.8,3732.6,0.002]
[1760214247291,0.6336,3733.3,3732.6,0.002]
[1760214247492,0.41993807,3736.2,3732.6,0.002]
[1760214247493,0.435,3734.1,3732.6,0.002]
[1760214247691,0.1336,3733.0,3732.9,2.67887141]
[1760214248188,0.435,3734.7,3733.6,2.67836583]
[1760214248389,2.67803576,3734.1,3732.9,3.21485457]
[1760214248591,0.435,3735.0,3733.2,1.92]
[1760214248773,0.435,3735.0,3734.3,2.67780774]
[1760214248974,0.435,3735.0,3733.3,0.02678595]
[1760214248975,0.435,3735.0,3733.5,2.67845185]
[1760214249170,2.67798928,3735.6,3732.6,0.002]
[1760214249171,0.001,3735.6,3733.6,0.77263518]
[1760214249403,0.001,3735.6,3732.9,1.92]
[1760214249404,0.001,3735.6,3735.5,2.6770178]
[1760214249786,0.001,3735.6,3732.7,2.6790259]
[1760214249787,0.3521,3735.6,3732.7,2.6790259]
[1760214249987,0.3511,3735.5,3732.6,0.002]
[1760214250166,3.31133916,3734.5,3733.2,2.67860036]
[1760214250368,2.67708946,3735.4,3732.6,0.002]
[1760214250369,0.6336,3734.0,3733.1,2.67866924]
[1760214250568,3.31169665,3734.0,3733.1,2.67866924]
[1760214250797,0.6336,3734.0,3732.6,0.002]
[1760214250967,0.6336,3734.9,3732.8,2.67895413]
[1760214251301,0.001,3735.6,3732.9,0.80235333]
[1760214251500,0.001,3735.6,3732.6,0.002]
[1760214251501,0.3521,3735.6,3734.8,2.67749466]
[1760214251795,0.3521,3735.6,3734.8,2.6774569]
[1760214251995,0.3521,3735.6,3734.5,2.67766671]
[1760214251996,3.0291144,3735.6,3734.5,2.67766671]
[1760214252164,0.3521,3735.6,3734.8,2.67745095]
[1760214252379,0.001,3735.6,3730.2,1.54578935]
[1760214252585,0.00774194,3735.4,3732.6,1.922]
[1760214252791,0.00774194,3735.2,3732.7,0.50600375]
[1760214253014,0.3511,3735.1,3732.8,0.48568954]
[1760214253185,0.001,3735.6,3733.1,2.67873884]
[1760214253381,0.6336,3735.0,3733.0,2.6788106]
[1760214253701,0.6336,3735.0,3733.1,0.4589]
[1760214253903,0.6336,3735.0,3734.2,2.67788978]
[1760214254212,0.6336,3735.2,3734.4,2.67776687]
[1760214254792,0.3521,3735.6,3733.9,1.92]
[1760214254994,0.3521,3735.6,3735.2,2.67718587]
[1760214255195,0.3521,3735.6,3734.0,0.23789]
[1760214255196,0.3511,3735.5,3734.0,0.23789]
[1760214255525,0.6336,3735.4,3734.0,1.92]
[1760214255708,3.31069063,3735.4,3734.0,1.92]
[1760214256087,3.31069063,3735.4,3733.6,0.4589]
[1760214256088,0.6336,3735.4,3734.1,2.67802147]
[1760214256287,0.001,3735.6,3735.0,2.67735612]
[1760214256610,0.001,3735.6,3734.7,2.6775537]
[1760214256611,0.001,3735.6,3735.4,2.67702887]
[1760214256925,0.001,3735.6,3735.3,2.67716062]
[1760214257129,0.3521,3735.6,3735.3,2.67716062]
[1760214257288,3.0281344,3735.5,3733.5,0.4589]
[1760214257488,0.9847,3735.4,3733.5,1.92]
[1760214257706,0.9847,3735.4,3734.2,2.67793273]
[1760214257707,0.6336,3735.2,3734.2,2.67793273]
[1760214258117,0.6336,3735.2,3734.5,2.67771824]
[1760214258333,0.001,3735.6,3734.8,2.6775012]
[1760214258334,0.1336,3734.9,3734.8,2.6775012]
[1760214261021,0.001,3735.6,3734.8,2.6775012]
[1760214261022,0.001,3735.6,3734.8,2.70427639]
[1760214261229,0.001,3735.6,3735.5,2.6770178]
[1760214261727,0.001,3735.6,3735.5,3.1359178]
[1760214262087,0.001,3735.6,3735.5,2.6770178]
[1760214263001,0.001,3735.6,3735.5,3.13958797]
[1760214263388,0.001,3735.6,3735.5,5.05958797]
[1760214263624,0.001,3735.6,3735.5,5.94008994]
[1760214264560,0.001,3735.6,3735.5,2.6770178]
[1760214264921,0.001,3735.6,3735.5,3.1128178]
[1760214266130,0.001,3736.0,3735.5,21.00781542]
[1760214266362,2.67458271,3739.0,3735.7,0.6336]
[1760214266660,0.001,3739.1,3736.4,1.92]